[Event "Early-Titled-Tuesday-Blitz-June-18-2024"]
[Site "Chess.com"]
[Date "2024.06.18"]
[Round "6"]
[White "nihalsarin"]
[Black "jcibarra"]
[Result "1-0"]
[WhiteElo "3190"]
[BlackElo "3013"]
[TimeControl "180+1"]
[EndTime "9:08:24 PDT"]
[Termination "nihalsarin won by checkmate"]

1. d4 {[%clk 0:03:00.9]} 1... Nf6 {[%clk 0:02:59.8]} 2. c4 {[%clk 0:03:00.6]}
2... d6 {[%clk 0:03:00.4]} 3. Nc3 {[%clk 0:02:58.7]} 3... e5 {[%clk 0:03:00.3]}
4. Nf3 {[%clk 0:02:59.1]} 4... e4 {[%clk 0:03:00.3]} 5. Ng5 {[%clk 0:02:55.6]}
5... Qe7 {[%clk 0:03:00.9]} 6. g3 {[%clk 0:02:40.6]} 6... h6 {[%clk 0:03:00.1]}
7. Nh3 {[%clk 0:02:41]} 7... c6 {[%clk 0:03:00.7]} 8. Bg2 {[%clk 0:02:33.8]}
8... Bf5 {[%clk 0:03:01.1]} 9. Qb3 {[%clk 0:02:15.9]} 9... b6 {[%clk 0:02:49]}
10. O-O {[%clk 0:01:36.6]} 10... Qd7 {[%clk 0:02:46.9]} 11. Nf4 {[%clk
0:01:36.8]} 11... g5 {[%clk 0:02:47.4]} 12. f3 {[%clk 0:01:37.3]} 12... exf3
{[%clk 0:02:44.3]} 13. Bxf3 {[%clk 0:01:37.2]} 13... gxf4 {[%clk 0:02:44.4]} 14.
Bxf4 {[%clk 0:01:38.1]} 14... Be7 {[%clk 0:02:36.5]} 15. e4 {[%clk 0:01:36.7]}
15... Bh3 {[%clk 0:02:32.9]} 16. e5 {[%clk 0:01:36.8]} 16... dxe5 {[%clk
0:02:16.6]} 17. dxe5 {[%clk 0:01:28.2]} 17... Bc5+ {[%clk 0:02:11.8]} 18. Kh1
{[%clk 0:01:27.3]} 18... Bxf1 {[%clk 0:01:08.8]} 19. Rxf1 {[%clk 0:01:28.2]}
19... Ng8 {[%clk 0:00:52.5]} 20. Ne4 {[%clk 0:01:21.7]} 20... Qe6 {[%clk
0:00:32]} 21. Nxc5 {[%clk 0:01:08.5]} 21... bxc5 {[%clk 0:00:30.1]} 22. Qb7
{[%clk 0:01:09.4]} 22... Qxc4 {[%clk 0:00:19.9]} 23. Qc8+ {[%clk 0:01:00.2]}
23... Ke7 {[%clk 0:00:19.9]} 24. Rd1 {[%clk 0:01:01.1]} 24... f5 {[%clk
0:00:08.3]} 25. Qc7+ {[%clk 0:00:57.5]} 25... Nd7 {[%clk 0:00:04.7]} 26. Qxd7+
{[%clk 0:00:52]} 26... Kf8 {[%clk 0:00:04.9]} 27. e6 {[%clk 0:00:50.7]} 27...
Ne7 {[%clk 0:00:05]} 28. Be5 {[%clk 0:00:41.4]} 28... Rh7 {[%clk 0:00:05.2]} 29.
Qd8+ {[%clk 0:00:41.5]} 29... Rxd8 {[%clk 0:00:04.4]} 30. Rxd8# {[%clk
0:00:42.4]} 1-0

[Event "Early-Titled-Tuesday-Blitz-June-18-2024"]
[Site "Chess.com"]
[Date "2024.06.18"]
[Round "6"]
[White "Nadtkins"]
[Black "GambitGiesbergen"]
[Result "1-0"]
[WhiteElo "2549"]
[BlackElo "2370"]
[TimeControl "180+1"]
[EndTime "9:08:27 PDT"]
[Termination "Nadtkins won by resignation"]

1. e4 {[%clk 0:02:54.9]} 1... c5 {[%clk 0:02:59.3]} 2. Be2 {[%clk 0:02:54.4]}
2... Nc6 {[%clk 0:02:58.7]} 3. f4 {[%clk 0:02:53.2]} 3... e6 {[%clk 0:02:56.5]}
4. Nf3 {[%clk 0:02:51.9]} 4... d5 {[%clk 0:02:56.4]} 5. d3 {[%clk 0:02:52.6]}
5... Bd6 {[%clk 0:02:50]} 6. c3 {[%clk 0:02:45.3]} 6... Nge7 {[%clk 0:02:46.9]}
7. O-O {[%clk 0:02:37.6]} 7... Qb6 {[%clk 0:02:29.2]} 8. Kh1 {[%clk 0:02:33.5]}
8... Bd7 {[%clk 0:02:25.9]} 9. Na3 {[%clk 0:02:30.3]} 9... f6 {[%clk 0:01:58.3]}
10. Nc2 {[%clk 0:02:23.6]} 10... Qc7 {[%clk 0:01:57.9]} 11. Qd2 {[%clk
0:02:11.9]} 11... h5 {[%clk 0:01:13.1]} 12. Na3 {[%clk 0:02:02.5]} 12... a6
{[%clk 0:01:12.2]} 13. Ng1 {[%clk 0:01:42.2]} 13... h4 {[%clk 0:00:54.6]} 14.
exd5 {[%clk 0:01:32.4]} 14... exd5 {[%clk 0:00:50.1]} 15. Qd1 {[%clk 0:01:19.7]}
15... O-O-O {[%clk 0:00:42.4]} 16. Bg4 {[%clk 0:01:17.8]} 16... Nf5 {[%clk
0:00:40.2]} 17. Nh3 {[%clk 0:01:14.8]} 17... Kb8 {[%clk 0:00:38.9]} 18. Kg1
{[%clk 0:01:13.4]} 18... g6 {[%clk 0:00:33.6]} 19. Bd2 {[%clk 0:01:12.4]} 19...
Rde8 {[%clk 0:00:16.9]} 20. Qf3 {[%clk 0:01:12.4]} 20... Nce7 {[%clk 0:00:14.4]}
21. Rae1 {[%clk 0:01:09.1]} 21... Bc6 {[%clk 0:00:14.9]} 22. Qf2 {[%clk
0:01:05.8]} 22... d4 {[%clk 0:00:12.1]} 23. Nc4 {[%clk 0:01:03.8]} 23... b5
{[%clk 0:00:04.8]} 24. Nxd6 {[%clk 0:01:04.1]} 24... Qxd6 {[%clk 0:00:05.7]} 25.
Bf3 {[%clk 0:01:03.1]} 25... Nd5 {[%clk 0:00:04.2]} 26. cxd4 {[%clk 0:00:59.6]}
26... Nxd4 {[%clk 0:00:03.1]} 27. Be4 {[%clk 0:00:59.9]} 27... f5 {[%clk
0:00:03.1]} 28. Ng5 {[%clk 0:01:00.1]} 28... fxe4 {[%clk 0:00:02.4]} 29. dxe4
{[%clk 0:01:01]} 29... Nb4 {[%clk 0:00:01.8]} 30. Nf7 {[%clk 0:01:01.4]} 30...
Qc7 {[%clk 0:00:01.8]} 31. Nxh8 {[%clk 0:01:01.6]} 31... Rxh8 {[%clk 0:00:02.7]}
32. f5 {[%clk 0:01:02.1]} 32... Nd3 {[%clk 0:00:02.8]} 33. Qe3 {[%clk
0:00:59.5]} 33... Nxe1 {[%clk 0:00:02.7]} 34. Qxe1 {[%clk 0:00:58.6]} 34... gxf5
{[%clk 0:00:01.8]} 35. Bf4 {[%clk 0:00:59.5]} 35... Kb7 {[%clk 0:00:01]} 36.
Bxc7 {[%clk 0:00:59.5]} 36... Kxc7 {[%clk 0:00:01.9]} 37. exf5 {[%clk
0:00:59.9]} 37... b4 {[%clk 0:00:01]} 38. Qe5+ {[%clk 0:01:00.2]} 38... Kb6
{[%clk 0:00:01.4]} 39. Qxh8 {[%clk 0:01:01.1]} 1-0

[Event "Early-Titled-Tuesday-Blitz-June-18-2024"]
[Site "Chess.com"]
[Date "2024.06.18"]
[Round "6"]
[White "DeArron_Fox"]
[Black "Hirna2005"]
[Result "1-0"]
[WhiteElo "2476"]
[BlackElo "2297"]
[TimeControl "180+1"]
[EndTime "9:08:27 PDT"]
[Termination "DeArron_Fox won by resignation"]

1. d4 {[%clk 0:03:00.2]} 1... g6 {[%clk 0:03:00.6]} 2. c4 {[%clk 0:02:59]} 2...
Bg7 {[%clk 0:03:01.2]} 3. Nc3 {[%clk 0:02:59.5]} 3... d6 {[%clk 0:03:01.8]} 4.
e4 {[%clk 0:03:00.1]} 4... Nc6 {[%clk 0:03:01.7]} 5. Be3 {[%clk 0:02:59.1]} 5...
e5 {[%clk 0:03:01.8]} 6. Nge2 {[%clk 0:02:59.4]} 6... exd4 {[%clk 0:03:01.3]} 7.
Nxd4 {[%clk 0:03:00.3]} 7... Nge7 {[%clk 0:03:01.5]} 8. Qd2 {[%clk 0:02:59.4]}
8... O-O {[%clk 0:03:01.2]} 9. Be2 {[%clk 0:02:57.5]} 9... f5 {[%clk 0:02:57]}
10. exf5 {[%clk 0:02:57.5]} 10... Nxd4 {[%clk 0:02:44]} 11. Bxd4 {[%clk
0:02:55.6]} 11... Bxf5 {[%clk 0:02:39.2]} 12. Bxg7 {[%clk 0:02:53]} 12... Kxg7
{[%clk 0:02:39.2]} 13. O-O {[%clk 0:02:53.1]} 13... Nc6 {[%clk 0:02:37.5]} 14.
Bf3 {[%clk 0:02:34.7]} 14... Qd7 {[%clk 0:02:32.9]} 15. Bxc6 {[%clk 0:02:30.1]}
15... Qxc6 {[%clk 0:02:30]} 16. Qd4+ {[%clk 0:02:27.4]} 16... Kg8 {[%clk
0:02:28.2]} 17. Rfe1 {[%clk 0:02:27.7]} 17... Rae8 {[%clk 0:02:26.9]} 18. f3
{[%clk 0:02:27.9]} 18... Qb6 {[%clk 0:02:20]} 19. Qxb6 {[%clk 0:02:25.6]} 19...
axb6 {[%clk 0:02:19.6]} 20. Nd5 {[%clk 0:02:23.8]} 20... Rxe1+ {[%clk
0:02:15.7]} 21. Rxe1 {[%clk 0:02:24.7]} 21... Rf7 {[%clk 0:02:15.9]} 22. Re7
{[%clk 0:02:23.7]} 22... Rxe7 {[%clk 0:02:07.9]} 23. Nxe7+ {[%clk 0:02:24.6]}
23... Kf7 {[%clk 0:02:08]} 24. Nxf5 {[%clk 0:02:24.7]} 24... gxf5 {[%clk
0:02:07.7]} 25. Kf2 {[%clk 0:02:25]} 25... f4 {[%clk 0:02:05.7]} 26. g3 {[%clk
0:02:24.8]} 26... fxg3+ {[%clk 0:02:05.5]} 27. hxg3 {[%clk 0:02:25.7]} 27... Ke6
{[%clk 0:02:04.2]} 28. Ke3 {[%clk 0:02:25.3]} 28... Ke5 {[%clk 0:02:04]} 29. g4
{[%clk 0:02:21.6]} 29... c6 {[%clk 0:01:43.1]} 30. f4+ {[%clk 0:02:17.1]} 30...
Ke6 {[%clk 0:01:43.2]} 31. Ke4 {[%clk 0:02:09.2]} 31... Kf6 {[%clk 0:01:43.2]}
32. g5+ {[%clk 0:01:11.4]} 32... Kg6 {[%clk 0:01:40.7]} 33. a4 {[%clk 0:00:37]}
33... c5 {[%clk 0:01:28.1]} 34. b3 {[%clk 0:00:29.7]} 34... Kf7 {[%clk
0:01:27.5]} 35. f5 {[%clk 0:00:22.5]} 35... Ke7 {[%clk 0:01:16.1]} 36. Kd5
{[%clk 0:00:20.9]} 36... Kd7 {[%clk 0:01:16.1]} 37. f6 {[%clk 0:00:17.3]} 37...
Kd8 {[%clk 0:01:14.7]} 38. Kxd6 {[%clk 0:00:16.4]} 38... Ke8 {[%clk 0:01:15]}
39. Ke6 {[%clk 0:00:15.1]} 39... Kf8 {[%clk 0:01:14.1]} 40. f7 {[%clk
0:00:13.6]} 40... b5 {[%clk 0:01:09.3]} 41. cxb5 {[%clk 0:00:13.7]} 41... b6
{[%clk 0:01:09.6]} 42. a5 {[%clk 0:00:10.3]} 42... c4 {[%clk 0:01:06]} 43. axb6
{[%clk 0:00:06.7]} 43... cxb3 {[%clk 0:01:05.8]} 44. b7 {[%clk 0:00:07.6]} 1-0

[Event "Early-Titled-Tuesday-Blitz-June-18-2024"]
[Site "Chess.com"]
[Date "2024.06.18"]
[Round "6"]
[White "urano56"]
[Black "Dewarfd"]
[Result "0-1"]
[WhiteElo "2395"]
[BlackElo "2135"]
[TimeControl "180+1"]
[EndTime "9:08:28 PDT"]
[Termination "Dewarfd won by resignation"]

1. d4 {[%clk 0:03:00.9]} 1... d5 {[%clk 0:02:57.7]} 2. c4 {[%clk 0:02:59.8]}
2... c6 {[%clk 0:02:57.7]} 3. e3 {[%clk 0:02:56.3]} 3... g6 {[%clk 0:02:57.6]}
4. Nc3 {[%clk 0:02:56]} 4... Bg7 {[%clk 0:02:57.5]} 5. cxd5 {[%clk 0:02:49.4]}
5... cxd5 {[%clk 0:02:56.3]} 6. Qb3 {[%clk 0:02:49.1]} 6... Nf6 {[%clk
0:02:53.2]} 7. Nf3 {[%clk 0:02:37.4]} 7... O-O {[%clk 0:02:52.5]} 8. Ne5 {[%clk
0:02:37.2]} 8... Nc6 {[%clk 0:02:35.3]} 9. Be2 {[%clk 0:02:27]} 9... Nxe5 {[%clk
0:02:11.3]} 10. dxe5 {[%clk 0:02:24.4]} 10... Ne4 {[%clk 0:02:05.1]} 11. Qxd5
{[%clk 0:02:20.5]} 11... Nxc3 {[%clk 0:01:59.3]} 12. Qxd8 {[%clk 0:02:19.9]}
12... Rxd8 {[%clk 0:01:57.9]} 13. bxc3 {[%clk 0:02:20]} 13... Bxe5 {[%clk
0:01:58]} 14. Bb2 {[%clk 0:02:11.6]} 14... Be6 {[%clk 0:01:56.3]} 15. Rd1 {[%clk
0:01:55.1]} 15... Rxd1+ {[%clk 0:01:42.6]} 16. Kxd1 {[%clk 0:01:56]} 16... Bxa2
{[%clk 0:01:41.6]} 17. Kc2 {[%clk 0:01:56.7]} 17... Be6 {[%clk 0:01:30.5]} 18.
Bf3 {[%clk 0:01:57]} 18... Rb8 {[%clk 0:01:26.6]} 19. Ra1 {[%clk 0:01:56.4]}
19... a6 {[%clk 0:01:26.4]} 20. Ra5 {[%clk 0:01:56.5]} 20... f6 {[%clk
0:01:21.2]} 21. Be4 {[%clk 0:01:56.2]} 21... Kf7 {[%clk 0:01:15]} 22. Ba3 {[%clk
0:01:55.9]} 22... Bd6 {[%clk 0:00:47]} 23. Bxd6 {[%clk 0:01:53.4]} 23... exd6
{[%clk 0:00:46.9]} 24. h4 {[%clk 0:01:54.3]} 24... f5 {[%clk 0:00:39.8]} 25. Bf3
{[%clk 0:01:51.4]} 25... Bc4 {[%clk 0:00:37.2]} 26. Ra4 {[%clk 0:01:49.8]} 26...
d5 {[%clk 0:00:33.7]} 27. Ra5 {[%clk 0:01:50]} 27... b6 {[%clk 0:00:32.1]} 28.
Ra1 {[%clk 0:01:42.9]} 28... a5 {[%clk 0:00:27.5]} 29. h5 {[%clk 0:01:42.8]}
29... Ke6 {[%clk 0:00:24.4]} 30. hxg6 {[%clk 0:01:43.1]} 30... hxg6 {[%clk
0:00:24.4]} 31. Rh1 {[%clk 0:01:43.4]} 31... Kf6 {[%clk 0:00:19.2]} 32. Rh7
{[%clk 0:01:43.1]} 32... b5 {[%clk 0:00:19.1]} 33. Ra7 {[%clk 0:01:42.9]} 33...
a4 {[%clk 0:00:18.8]} 34. Ra6+ {[%clk 0:01:42.8]} 34... Kg5 {[%clk 0:00:18.2]}
35. Ra7 {[%clk 0:01:39.5]} 35... b4 {[%clk 0:00:16.4]} 36. cxb4 {[%clk
0:01:39.2]} 36... Rxb4 {[%clk 0:00:16.2]} 37. Kc3 {[%clk 0:01:36.4]} 37... Rb3+
{[%clk 0:00:16.4]} 38. Kc2 {[%clk 0:01:36.5]} 38... Rb8 {[%clk 0:00:15.7]} 39.
Kc3 {[%clk 0:01:31.3]} 39... Bb3 {[%clk 0:00:15.2]} 40. Ra5 {[%clk 0:01:29.8]}
40... Rc8+ {[%clk 0:00:15.6]} 41. Kd4 {[%clk 0:01:29.8]} 41... Rc2 {[%clk
0:00:13.7]} 42. Bxd5 {[%clk 0:00:59.9]} 42... Rd2+ {[%clk 0:00:13.5]} 43. Ke5
{[%clk 0:00:58.6]} 43... Rxd5+ {[%clk 0:00:13.3]} 44. Rxd5 {[%clk 0:00:58.2]}
44... Bxd5 {[%clk 0:00:14.2]} 0-1

[Event "Early-Titled-Tuesday-Blitz-June-18-2024"]
[Site "Chess.com"]
[Date "2024.06.18"]
[Round "6"]
[White "DinaBelenkaya"]
[Black "Squirlolz"]
[Result "1-0"]
[WhiteElo "2344"]
[BlackElo "2490"]
[TimeControl "180+1"]
[EndTime "9:08:29 PDT"]
[Termination "DinaBelenkaya won by resignation"]

1. Nf3 {[%clk 0:03:00.9]} 1... d6 {[%clk 0:02:59.4]} 2. g3 {[%clk 0:02:54.3]}
2... h6 {[%clk 0:02:56]} 3. Bg2 {[%clk 0:02:53.9]} 3... g5 {[%clk 0:02:56.4]} 4.
O-O {[%clk 0:02:54]} 4... Bg7 {[%clk 0:02:57]} 5. e4 {[%clk 0:02:46.8]} 5... Nf6
{[%clk 0:02:56.7]} 6. Re1 {[%clk 0:02:45.6]} 6... Bg4 {[%clk 0:02:52.7]} 7. d4
{[%clk 0:02:43]} 7... c6 {[%clk 0:02:49.1]} 8. c4 {[%clk 0:02:41.7]} 8... Nbd7
{[%clk 0:02:48.9]} 9. Nc3 {[%clk 0:02:41.4]} 9... e5 {[%clk 0:02:48.7]} 10. d5
{[%clk 0:02:30.4]} 10... Qe7 {[%clk 0:02:43]} 11. Qb3 {[%clk 0:02:29.5]} 11...
Nc5 {[%clk 0:02:42.7]} 12. Qc2 {[%clk 0:02:29.1]} 12... a5 {[%clk 0:02:42.6]}
13. Nd2 {[%clk 0:02:14.8]} 13... h5 {[%clk 0:02:40.1]} 14. Nf1 {[%clk
0:02:12.5]} 14... h4 {[%clk 0:02:38.9]} 15. Bxg5 {[%clk 0:02:11.7]} 15... h3
{[%clk 0:02:35.3]} 16. Bh1 {[%clk 0:02:11.1]} 16... Bh6 {[%clk 0:02:35]} 17. Bh4
{[%clk 0:02:07.8]} 17... O-O-O {[%clk 0:02:23.1]} 18. Ne3 {[%clk 0:02:07.6]}
18... Bxe3 {[%clk 0:02:22.7]} 19. Rxe3 {[%clk 0:02:08.1]} 19... Rxh4 {[%clk
0:02:20.2]} 20. gxh4 {[%clk 0:02:09]} 20... Nh5 {[%clk 0:02:19.9]} 21. Ne2
{[%clk 0:01:41.3]} 21... Qxh4 {[%clk 0:02:16.1]} 22. Ng3 {[%clk 0:01:40.8]}
22... Nf4 {[%clk 0:02:15.8]} 23. Kf1 {[%clk 0:01:27]} 23... cxd5 {[%clk
0:01:47.7]} 24. cxd5 {[%clk 0:01:26.7]} 24... Kb8 {[%clk 0:01:48.1]} 25. Qd2
{[%clk 0:01:20.2]} 25... Rc8 {[%clk 0:01:40.7]} 26. b4 {[%clk 0:01:20]} 26...
axb4 {[%clk 0:01:30.1]} 27. Rb1 {[%clk 0:01:20]} 27... Na6 {[%clk 0:01:19.2]}
28. a3 {[%clk 0:01:19.6]} 28... Bd7 {[%clk 0:01:05.5]} 29. axb4 {[%clk
0:01:09.6]} 29... Bb5+ {[%clk 0:01:05.4]} 30. Kg1 {[%clk 0:01:09.9]} 30... Qg4
{[%clk 0:00:54.1]} 31. Bf3 {[%clk 0:01:05.5]} 31... Qg6 {[%clk 0:00:49.5]} 32.
Kh1 {[%clk 0:01:04.7]} 32... Nxd5 {[%clk 0:00:41.7]} 33. Qxd5 {[%clk 0:00:56.5]}
33... Bc6 {[%clk 0:00:36]} 34. Qd2 {[%clk 0:00:50.3]} 34... f5 {[%clk
0:00:35.2]} 35. b5 {[%clk 0:00:49.9]} 35... fxe4 {[%clk 0:00:34.1]} 36. bxc6
{[%clk 0:00:44.4]} 36... exf3 {[%clk 0:00:33.1]} 37. Rxb7+ {[%clk 0:00:42.7]}
37... Ka8 {[%clk 0:00:33.4]} 38. Rb6 {[%clk 0:00:33.6]} 38... Ka7 {[%clk
0:00:30.1]} 39. Qa5 {[%clk 0:00:25.8]} 1-0

[Event "Early-Titled-Tuesday-Blitz-June-18-2024"]
[Site "Chess.com"]
[Date "2024.06.18"]
[Round "6"]
[White "Jeppesen08"]
[Black "talaicito"]
[Result "1-0"]
[WhiteElo "2448"]
[BlackElo "2255"]
[TimeControl "180+1"]
[EndTime "9:08:29 PDT"]
[Termination "Jeppesen08 won on time"]

1. e4 {[%clk 0:03:00.9]} 1... c5 {[%clk 0:02:59.4]} 2. d4 {[%clk 0:03:00.2]}
2... cxd4 {[%clk 0:02:58]} 3. c3 {[%clk 0:03:00.4]} 3... d3 {[%clk 0:02:57.1]}
4. Bxd3 {[%clk 0:02:59.8]} 4... Nc6 {[%clk 0:02:55.5]} 5. Nf3 {[%clk 0:03:00.1]}
5... d5 {[%clk 0:02:53.8]} 6. e5 {[%clk 0:02:56]} 6... Bg4 {[%clk 0:02:52.9]} 7.
h3 {[%clk 0:02:45.8]} 7... Bxf3 {[%clk 0:02:50.8]} 8. Qxf3 {[%clk 0:02:43.6]}
8... Nxe5 {[%clk 0:02:50.6]} 9. Bb5+ {[%clk 0:02:42.7]} 9... Nc6 {[%clk
0:02:50.8]} 10. O-O {[%clk 0:02:39.6]} 10... e6 {[%clk 0:02:50.5]} 11. c4 {[%clk
0:02:30.5]} 11... Nf6 {[%clk 0:02:37.8]} 12. Nc3 {[%clk 0:02:30.4]} 12... Be7
{[%clk 0:02:25.4]} 13. Bg5 {[%clk 0:02:23.4]} 13... O-O {[%clk 0:02:12.1]} 14.
Rad1 {[%clk 0:02:12.3]} 14... Qa5 {[%clk 0:01:51.4]} 15. cxd5 {[%clk 0:02:06.5]}
15... Nxd5 {[%clk 0:01:36.8]} 16. Bxc6 {[%clk 0:01:41.2]} 16... bxc6 {[%clk
0:01:19.2]} 17. Rxd5 {[%clk 0:01:39.4]} 17... cxd5 {[%clk 0:01:11.5]} 18. Bxe7
{[%clk 0:01:39.6]} 18... Rfe8 {[%clk 0:01:06.3]} 19. Bh4 {[%clk 0:01:36.4]}
19... Rab8 {[%clk 0:00:59.1]} 20. Qg3 {[%clk 0:01:18.1]} 20... Kh8 {[%clk
0:00:36.1]} 21. b3 {[%clk 0:01:02.4]} 21... Rbc8 {[%clk 0:00:32.9]} 22. Na4
{[%clk 0:01:00.4]} 22... Rc2 {[%clk 0:00:17.8]} 23. f4 {[%clk 0:00:54.1]} 23...
Qc7 {[%clk 0:00:15.2]} 24. Qe3 {[%clk 0:00:44]} 24... f6 {[%clk 0:00:06.3]} 25.
Qd4 {[%clk 0:00:35.2]} 25... Kg8 {[%clk 0:00:03.5]} 26. Rf3 {[%clk 0:00:33.4]}
26... Rc1+ {[%clk 0:00:02.6]} 27. Kh2 {[%clk 0:00:33.5]} 27... e5 {[%clk
0:00:01.5]} 28. Qxd5+ {[%clk 0:00:33]} 1-0

[Event "Early-Titled-Tuesday-Blitz-June-18-2024"]
[Site "Chess.com"]
[Date "2024.06.18"]
[Round "6"]
[White "LLariMarc"]
[Black "FishThatRoared"]
[Result "1-0"]
[WhiteElo "2486"]
[BlackElo "2259"]
[TimeControl "180+1"]
[EndTime "9:08:34 PDT"]
[Termination "LLariMarc won on time"]

1. d3 {[%clk 0:03:00.1]} 1... d5 {[%clk 0:02:58.5]} 2. Nd2 {[%clk 0:03:01]} 2...
e5 {[%clk 0:02:57.2]} 3. e3 {[%clk 0:03:01.4]} 3... Nc6 {[%clk 0:02:53.8]} 4.
Ne2 {[%clk 0:03:02.3]} 4... f5 {[%clk 0:02:52]} 5. g3 {[%clk 0:03:02]} 5... Nf6
{[%clk 0:02:52]} 6. Bg2 {[%clk 0:03:02.6]} 6... Bd6 {[%clk 0:02:51.4]} 7. b3
{[%clk 0:03:03.5]} 7... Qe7 {[%clk 0:02:50.7]} 8. Bb2 {[%clk 0:03:04.4]} 8... f4
{[%clk 0:02:50.7]} 9. e4 {[%clk 0:02:57.5]} 9... dxe4 {[%clk 0:02:38.6]} 10.
Nxe4 {[%clk 0:02:55.1]} 10... Bg4 {[%clk 0:02:30.8]} 11. Nxf6+ {[%clk
0:02:53.8]} 11... gxf6 {[%clk 0:02:26.5]} 12. f3 {[%clk 0:02:54.2]} 12... Bd7
{[%clk 0:02:19.5]} 13. Nc3 {[%clk 0:02:54.3]} 13... O-O-O {[%clk 0:02:15.2]} 14.
Qe2 {[%clk 0:02:52.8]} 14... Nd4 {[%clk 0:02:11.6]} 15. Qd2 {[%clk 0:02:44.2]}
15... Rhg8 {[%clk 0:02:05.6]} 16. g4 {[%clk 0:02:30.9]} 16... f5 {[%clk
0:02:01.5]} 17. h3 {[%clk 0:02:30.3]} 17... Qh4+ {[%clk 0:01:59.4]} 18. Kd1
{[%clk 0:02:28.4]} 18... Bc6 {[%clk 0:01:57.4]} 19. Rf1 {[%clk 0:02:25.6]} 19...
fxg4 {[%clk 0:01:48.6]} 20. hxg4 {[%clk 0:02:26.5]} 20... h5 {[%clk 0:01:47.8]}
21. Ne4 {[%clk 0:02:12]} 21... hxg4 {[%clk 0:01:43.5]} 22. fxg4 {[%clk
0:02:05.5]} 22... Rxg4 {[%clk 0:01:26.2]} 23. Bxd4 {[%clk 0:02:03]} 23... exd4
{[%clk 0:01:18.4]} 24. Bf3 {[%clk 0:02:01]} 24... Rg6 {[%clk 0:01:12.4]} 25. a4
{[%clk 0:01:55.4]} 25... Bd5 {[%clk 0:01:03]} 26. Kc1 {[%clk 0:01:54.9]} 26...
Qe7 {[%clk 0:00:57.4]} 27. Kb2 {[%clk 0:01:51.8]} 27... Bb4 {[%clk 0:00:57]} 28.
Qh2 {[%clk 0:01:50.3]} 28... Rc6 {[%clk 0:00:48.5]} 29. Ra2 {[%clk 0:01:45.9]}
29... Kb8 {[%clk 0:00:36.9]} 30. Qe2 {[%clk 0:01:42.9]} 30... Bxe4 {[%clk
0:00:33.1]} 31. Qxe4 {[%clk 0:01:42.1]} 31... Qc5 {[%clk 0:00:32.8]} 32. Kb1
{[%clk 0:01:41.1]} 32... Rb6 {[%clk 0:00:23.3]} 33. Qxf4 {[%clk 0:01:40.4]}
33... Bc3 {[%clk 0:00:18.8]} 34. Qc1 {[%clk 0:01:39.5]} 34... a5 {[%clk
0:00:18.5]} 35. Be4 {[%clk 0:01:39.3]} 35... Rg8 {[%clk 0:00:16]} 36. Qa3 {[%clk
0:01:37.2]} 36... Bb4 {[%clk 0:00:14.7]} 37. Qc1 {[%clk 0:01:37.3]} 37... Qc3
{[%clk 0:00:13.6]} 38. Qb2 {[%clk 0:01:36.6]} 38... Qc5 {[%clk 0:00:12.5]} 39.
Rd1 {[%clk 0:01:31.7]} 39... Ka7 {[%clk 0:00:12.3]} 40. Qc1 {[%clk 0:01:31.8]}
40... Qc3 {[%clk 0:00:12]} 41. Qf4 {[%clk 0:01:28.6]} 41... Rd6 {[%clk
0:00:08.2]} 42. Qc1 {[%clk 0:01:18.2]} 42... Rb6 {[%clk 0:00:07.8]} 43. Qb2
{[%clk 0:01:18.4]} 43... Qc5 {[%clk 0:00:07.1]} 44. Rf1 {[%clk 0:01:17.2]} 44...
Re8 {[%clk 0:00:07.1]} 45. Rf5 {[%clk 0:01:16.4]} 45... Qd6 {[%clk 0:00:06]} 46.
Qc1 {[%clk 0:01:16.4]} 46... Qh2 {[%clk 0:00:05]} 47. Rd5 {[%clk 0:01:15.1]}
47... Rxe4 {[%clk 0:00:02.9]} 48. dxe4 {[%clk 0:01:14.8]} 48... Rg6 {[%clk
0:00:01.4]} 49. Rxd4 {[%clk 0:01:13.8]} 1-0

[Event "Early-Titled-Tuesday-Blitz-June-18-2024"]
[Site "Chess.com"]
[Date "2024.06.18"]
[Round "6"]
[White "Tol_Tol"]
[Black "myburger"]
[Result "0-1"]
[WhiteElo "2358"]
[BlackElo "2536"]
[TimeControl "180+1"]
[EndTime "9:08:35 PDT"]
[Termination "myburger won by resignation"]

1. d4 {[%clk 0:02:59.9]} 1... f5 {[%clk 0:03:00]} 2. Nf3 {[%clk 0:02:57.5]} 2...
e6 {[%clk 0:03:00.3]} 3. g3 {[%clk 0:02:56.7]} 3... Nf6 {[%clk 0:03:00.9]} 4.
Bg2 {[%clk 0:02:56.7]} 4... d5 {[%clk 0:02:59]} 5. O-O {[%clk 0:02:56.9]} 5...
Bd6 {[%clk 0:02:59.6]} 6. Bf4 {[%clk 0:02:56.5]} 6... Bxf4 {[%clk 0:02:59]} 7.
gxf4 {[%clk 0:02:56.6]} 7... O-O {[%clk 0:02:59.5]} 8. c4 {[%clk 0:02:55.1]}
8... c6 {[%clk 0:02:59.2]} 9. Nbd2 {[%clk 0:02:50]} 9... Ne4 {[%clk 0:02:56.9]}
10. Ne5 {[%clk 0:02:49.4]} 10... Nd7 {[%clk 0:02:56.5]} 11. Nd3 {[%clk
0:02:47.7]} 11... Nxd2 {[%clk 0:02:54.9]} 12. Qxd2 {[%clk 0:02:47.7]} 12... dxc4
{[%clk 0:02:55.5]} 13. Ne1 {[%clk 0:02:39]} 13... Nb6 {[%clk 0:02:48.9]} 14. Nf3
{[%clk 0:02:30.2]} 14... Bd7 {[%clk 0:02:41.6]} 15. Qc2 {[%clk 0:02:23.6]} 15...
Rc8 {[%clk 0:02:37.7]} 16. Rfd1 {[%clk 0:02:14.8]} 16... Qe7 {[%clk 0:02:31.1]}
17. Ne5 {[%clk 0:02:12.6]} 17... c5 {[%clk 0:02:26.9]} 18. d5 {[%clk 0:02:03.5]}
18... exd5 {[%clk 0:02:22.3]} 19. Bxd5+ {[%clk 0:02:01.4]} 19... Nxd5 {[%clk
0:02:22]} 20. Rxd5 {[%clk 0:02:01.2]} 20... Be6 {[%clk 0:02:20.6]} 21. Rd2
{[%clk 0:01:52.5]} 21... Qh4 {[%clk 0:02:18.9]} 22. e3 {[%clk 0:01:50.1]} 22...
Rf6 {[%clk 0:02:13.9]} 23. Rad1 {[%clk 0:01:34.8]} 23... Rh6 {[%clk 0:01:55.6]}
24. f3 {[%clk 0:01:34.9]} 24... b5 {[%clk 0:01:45.9]} 25. Rd6 {[%clk 0:01:17.4]}
25... Rf8 {[%clk 0:01:33.6]} 26. Qg2 {[%clk 0:00:53.4]} 26... Bc8 {[%clk
0:01:10.2]} 27. Rxh6 {[%clk 0:00:50.1]} 27... Qxh6 {[%clk 0:01:11.1]} 28. Qd2
{[%clk 0:00:34.1]} 28... Qb6 {[%clk 0:00:55.6]} 29. Kh1 {[%clk 0:00:18.5]} 29...
a5 {[%clk 0:00:53.9]} 30. Rg1 {[%clk 0:00:16.4]} 30... Rd8 {[%clk 0:00:47.4]}
31. Qg2 {[%clk 0:00:15.5]} 31... Qf6 {[%clk 0:00:46.4]} 32. Nc6 {[%clk
0:00:12.2]} 32... Rd3 {[%clk 0:00:41]} 33. Ne7+ {[%clk 0:00:11]} 33... Qxe7
{[%clk 0:00:39.6]} 0-1